fUSD/lending_fUSD_20241107
["ID","MTS","AMOUNT","RATE_DAILY","PERIOD"]
[341519263,1730949048095,-151.0,0.000316,7]
[341519264,1730949048104,-151.0,0.000316,7]
[341519265,1730949048113,-151.0,0.000316,7]
[341519266,1730949048123,-294.501227,0.000316,7]
[341519267,1730949048132,-151.0,0.000316,7]
[341519268,1730949048141,-151.0,0.000316,7]
[341519269,1730949048152,-294.501227,0.000316,7]
[341519270,1730949048161,-165.701829,0.000316,7]
[341519271,1730949048171,-165.701829,0.000316,7]
[341519272,1730949048180,-152.13403,0.000316,7]
[341519273,1730949048190,-151.0,0.000316,7]
[341519274,1730949048199,-2078.539581,0.000316,7]
[341519275,1730949048209,-2078.539581,0.000316,7]
[341519276,1730949048218,-151.0,0.000316,7]
[341519277,1730949048227,-151.0,0.000316,7]
[341519278,1730949048237,-151.0,0.000316,7]
[341519279,1730949048246,-151.0,0.000316,7]
[341519280,1730949048255,-151.0,0.000316,7]
[341519281,1730949048264,-892.472602,0.000316,7]
[341519282,1730949048273,-892.472602,0.000316,7]
[341519283,1730949048282,-200.0,0.000316,2]
[341519284,1730949048291,-153.139871,0.000316,7]
[341519285,1730949048303,-877.42992014,0.00031614,2]
[341519286,1730949048312,-164.636,0.0003164,2]
[341519287,1730949048321,-877.42992014,0.00031686,2]
[341519288,1730949048331,-1500.0,0.00031701,2]
[341519289,1730949048340,-1500.0,0.00031719,2]
[341519290,1730949048349,-1500.0,0.00031721,2]
[341519291,1730949048359,-186.572963,0.00031721,7]
[341519292,1730949048368,-186.572963,0.00031721,7]
[341519294,1730949048377,-151.0,0.00031721,7]
[341519295,1730949048387,-156.715689,0.00031721,7]
[341519296,1730949048396,-253.878033,0.00031721,7]
[341519297,1730949048405,-253.878033,0.00031721,7]
[341519298,1730949048415,-192.148433,0.00031721,7]
[341519299,1730949048425,-151.0,0.00031721,7]
[341519300,1730949048435,-150.0,0.00031725,2]
[341519301,1730949048444,-1039.88567375,0.00031726,2]
[341519302,1730949048454,-349.08590504,0.00031727,2]
[341519303,1730949048464,-150.0,0.00031728,2]
[341519304,1730949048473,-349.08590504,0.00031729,2]
[341519305,1730949048483,-150.91409496,0.0003173,2]
[341519306,1730949048493,-150.0,0.00031736,2]
[341519307,1730949048504,-150.0,0.00031736,2]
[341519308,1730949048514,-150.91409496,0.00031737,2]
[341519309,1730949048524,-150.0,0.00031741,2]
[341519310,1730949048534,-150.0,0.00031745,2]
[341519311,1730949048543,-150.91409496,0.00031745,2]
[341519312,1730949048553,-959.48,0.00031747,2]
[341519313,1730949048563,-150.0,0.00031747,2]
[341519314,1730949048573,-150.0,0.00031748,2]
[341519315,1730949048582,-150.0,0.00031748,2]
[341519316,1730949048591,-349.08590504,0.00031749,2]
[341519317,1730949048600,-150.0,0.00031749,2]
[341519318,1730949048610,-150.0,0.0003175,2]
[341519319,1730949048620,-150.0,0.00031754,2]
[341519320,1730949048630,-150.0,0.00031755,2]
[341519321,1730949048646,-150.0,0.00031757,2]
[341519322,1730949048655,-877.42992014,0.00031757,2]
[341519323,1730949048665,-150.0,0.00031758,2]
[341519324,1730949048674,-150.0,0.00031758,2]
[341519325,1730949048685,-1500.0,0.0003176,2]
[341519326,1730949048694,-150.0,0.00031762,2]
[341519327,1730949048703,-150.0,0.00031768,2]
[341519328,1730949048714,-150.0,0.00031769,2]
[341519329,1730949048723,-150.0,0.00031771,2]
[341519330,1730949048732,-150.0,0.00031776,2]
[341519331,1730949048742,-150.0,0.00031777,2]
[341519332,1730949048752,-150.0,0.00031781,2]
[341519333,1730949048762,-150.0,0.00031783,2]
[341519334,1730949048771,-1500.0,0.00031786,2]
[341519335,1730949048780,-166.22,0.00031787,2]
[341519336,1730949048791,-150.0,0.0003179,2]
[341519337,1730949048802,-150.0,0.00031792,2]
[341519338,1730949048811,-15210.3730304,0.000318,2]
[341519339,1730949048821,-151.0,0.000318,7]
[341519340,1730949048830,-167.049241,0.000318,7]
[341519341,1730949048839,-151.0,0.000318,7]
[341519342,1730949048849,-151.0,0.000318,7]
[341519343,1730949048859,-170.339211,0.000318,7]
[341519344,1730949048868,-152.824735,0.000318,7]
[341519345,1730949048877,-170.339211,0.000318,7]
[341519346,1730949048886,-151.0,0.000318,7]
[341519347,1730949048895,-151.529039,0.000318,7]
[341519348,1730949048905,-151.0,0.000318,7]
[341519349,1730949048914,-151.0,0.000318,7]
[341519350,1730949048923,-151.0,0.000318,7]
[341519351,1730949048934,-151.0,0.000318,7]
[341519352,1730949048944,-151.0,0.000318,7]
[341519353,1730949048953,-151.0,0.000318,7]
[341519354,1730949048963,-216.055883,0.000318,7]
[341519355,1730949048972,-216.055883,0.000318,7]
[341519356,1730949048982,-263.969992,0.000318,7]
[341519357,1730949048991,-172.852203,0.000318,7]
[341519358,1730949049001,-212.432198,0.000318,7]
[341519359,1730949049011,-172.852203,0.000318,7]
[341519360,1730949049020,-3000.0,0.000318,2]
[341519361,1730949049030,-212.432198,0.000318,7]
[341519362,1730949049040,-229.236067,0.000318,2]
[341519363,1730949049050,-151.0,0.000318,7]
[341519364,1730949049060,-600.07130332,0.000318,5]
[341519365,1730949049069,-151.0,0.000318,7]
[341519366,1730949049079,-180.536283,0.000318,7]
[341519367,1730949049088,-151.0,0.000318,7]
[341519368,1730949049099,-180.536283,0.000318,7]
[341519369,1730949049108,-151.0,0.000318,7]
[341519370,1730949049117,-151.0,0.000318,7]
[341519371,1730949049126,-151.0,0.000318,7]
[341519372,1730949049135,-151.0,0.000318,7]
[341519373,1730949049145,-157.568119,0.000318,7]
[341519374,1730949049155,-264.854146,0.000318,7]
[341519375,1730949049164,-264.854146,0.000318,7]
[341519376,1730949049174,-151.0,0.000318,7]
[341519377,1730949049183,-151.0,0.000318,7]
[341519378,1730949049192,-151.0,0.000318,7]
[341519379,1730949049202,-151.0,0.000318,7]
[341519380,1730949049211,-151.0,0.000318,7]
[341519381,1730949049221,-151.0,0.000318,7]
[341519382,1730949049230,-1051.368008,0.000318,7]
[341519383,1730949049239,-1051.368008,0.000318,7]
[341519384,1730949049250,-224.449515,0.000318,7]
[341519385,1730949049260,-224.449515,0.000318,7]
[341519386,1730949049269,-151.0,0.000318,7]
[341519387,1730949049279,-209.582217,0.000318,7]
[341519388,1730949049288,-209.582217,0.000318,7]
[341519389,1730949049297,-151.0,0.000318,7]
[341519390,1730949049308,-151.0,0.000318,7]
[341519391,1730949049318,-151.0,0.000318,7]
[341519392,1730949049327,-151.0,0.000318,7]
[341519393,1730949049337,-151.0,0.000318,7]
[341519394,1730949049346,-151.0,0.000318,7]
[341519395,1730949049356,-151.0,0.000318,7]
[341519396,1730949049365,-151.0,0.000318,7]
[341519397,1730949049374,-151.0,0.000318,7]
[341519398,1730949049383,-151.0,0.000318,7]
[341519399,1730949049393,-157.567658,0.000318,7]
[341519400,1730949049402,-151.0,0.000318,7]
[341519401,1730949049412,-155.85904,0.000318,7]
[341519402,1730949049421,-196.970792,0.000318,7]
[341519403,1730949049430,-644.437825,0.000318,7]
[341519404,1730949049440,-151.0,0.000318,7]
[341519405,1730949049450,-644.437825,0.000318,7]
[341519406,1730949049460,-173.745683,0.000318,7]
[341519407,1730949049470,-151.0,0.000318,7]
[341519408,1730949049479,-173.745683,0.000318,7]
[341519409,1730949049490,-151.0,0.000318,7]
[341519410,1730949049500,-151.0,0.000318,7]
[341519411,1730949049511,-151.0,0.000318,7]
[341519412,1730949049521,-294.501227,0.000318,7]
[341519413,1730949049530,-151.0,0.000318,7]
[341519414,1730949049541,-151.0,0.000318,7]
[341519415,1730949049553,-294.501227,0.000318,7]
[341519416,1730949049563,-165.701829,0.000318,7]
[341519417,1730949049572,-165.701829,0.000318,7]
[341519418,1730949049581,-301.85229,0.000318,7]
[341519419,1730949049591,-2078.539581,0.000318,7]
[341519420,1730949049600,-2078.539581,0.000318,7]
[341519421,1730949049609,-157.24999,0.000318,7]
[341519422,1730949049618,-151.0,0.000318,7]
[341519423,1730949049627,-151.0,0.000318,7]
[341519424,1730949049642,-156.637337,0.000318,7]
[341519425,1730949049651,-151.0,0.000318,7]
[341519426,1730949049661,-456.608977,0.000318,7]
[341519427,1730949049671,-892.472602,0.000318,7]
[341519428,1730949049683,-456.608977,0.000318,7]
[341519429,1730949049692,-892.472602,0.000318,7]
[341519430,1730949049702,-150.0,0.00031801,2]
[341519431,1730949049712,-150.0,0.00031806,2]
[341519432,1730949049722,-150.0,0.00031806,2]
[341519433,1730949049732,-150.0,0.00031807,2]
[341519434,1730949049742,-150.0,0.00031813,2]
[341519435,1730949049751,-262.37949799,0.00031817,2]
[341519436,1730949049760,-150.0,0.00031819,2]
[341519437,1730949049770,-150.0,0.00031823,2]
[341519438,1730949049779,-150.0,0.00031825,2]
[341519439,1730949049789,-150.0,0.00031825,2]
[341519440,1730949049798,-150.0,0.00031826,2]
[341519441,1730949049812,-877.42992014,0.00031829,2]
[341519442,1730949049821,-150.0,0.00031829,2]
[341519443,1730949049831,-150.0,0.00031829,2]
[341519444,1730949049841,-7881.71672224,0.00031834,15]
[341519445,1730949049850,-150.0,0.00031836,2]
[341519446,1730949049859,-150.0,0.00031836,2]
[341519447,1730949049869,-150.110711,0.00031838,2]
[341519448,1730949049878,-150.110711,0.00031838,3]
[341519449,1730949049888,-1197.74247045,0.0003184,4]
[341519450,1730949049897,-500.0,0.0003184,2]
[341519451,1730949049907,-500.0,0.0003184,2]
[341519452,1730949049916,-500.0,0.0003184,2]
[341519453,1730949049925,-500.0,0.0003184,2]
[341519454,1730949049934,-500.0,0.0003184,2]
[341519455,1730949049944,-422.2991,0.0003184,2]
[341519456,1730949049953,-1000.0,0.0003184,2]
[341519457,1730949049963,-1000.0,0.0003184,2]
[341519458,1730949049972,-1000.0,0.0003184,2]
[341519459,1730949049982,-1000.0,0.0003184,2]
[341519460,1730949049991,-1000.0,0.0003184,2]
[341519461,1730949050001,-1000.0,0.0003184,2]
[341519462,1730949050010,-1000.0,0.0003184,2]
[341519463,1730949050020,-1000.0,0.0003184,2]
[341519464,1730949050029,-1000.0,0.0003184,2]
[341519465,1730949050038,-1000.0,0.0003184,2]
[341519466,1730949050048,-1000.0,0.0003184,2]
[341519467,1730949050058,-1000.0,0.0003184,2]
[341519468,1730949050068,-1000.0,0.0003184,2]
[341519469,1730949050077,-1000.0,0.0003184,2]
[341519470,1730949050086,-1000.0,0.0003184,2]
[341519471,1730949050095,-1000.0,0.0003184,2]
[341519472,1730949050108,-1000.0,0.0003184,2]
[341519473,1730949050117,-1000.0,0.0003184,2]
[341519474,1730949050127,-1000.0,0.0003184,2]
[341519475,1730949050136,-1000.0,0.0003184,2]
[341519476,1730949050145,-1000.0,0.0003184,2]
[341519477,1730949050156,-1000.0,0.0003184,2]
[341519478,1730949050166,-1000.0,0.0003184,2]
[341519479,1730949050177,-1000.0,0.0003184,2]
[341519480,1730949050187,-1000.0,0.0003184,2]
[341519481,1730949050198,-1000.0,0.0003184,2]
[341519482,1730949050210,-1000.0,0.0003184,2]
[341519483,1730949050220,-1000.0,0.0003184,2]
[341519484,1730949050230,-1000.0,0.0003184,2]
[341519485,1730949050240,-1000.0,0.0003184,2]
[341519486,1730949050249,-522.2514,0.0003184,2]
[341519487,1730949050259,-150.0,0.00031841,2]
[341519488,1730949050268,-150.0,0.00031844,2]
[341519489,1730949050277,-150.0,0.00031845,2]
[341519490,1730949050286,-150.91409496,0.00031847,2]
[341519491,1730949050295,-171.110711,0.00031848,3]
[341519492,1730949050307,-150.0,0.00031848,2]
[341519493,1730949050317,-150.0,0.0003185,2]
[341519494,1730949050326,-152.0,0.00031854,6]
[341519495,1730949050335,-150.0,0.00031854,2]
[341519496,1730949050344,-150.0,0.00031854,2]
[341519497,1730949050354,-1500.0,0.00031856,2]
[341519498,1730949050363,-150.0,0.00031858,2]
[341519499,1730949050373,-150.0,0.00031859,2]
[341519500,1730949050382,-150.0,0.0003186,2]
[341519501,1730949050392,-150.0,0.00031861,2]
[341519502,1730949050401,-150.0,0.00031861,2]
[341519503,1730949050410,-163.069,0.00031863,30]
[341519504,1730949050419,-150.0,0.00031865,2]
[341519505,1730949050432,-150.0,0.00031866,2]
[341519506,1730949050442,-150.0,0.00031871,2]
[341519507,1730949050451,-349.08590504,0.00031872,2]
[341519508,1730949050462,-150.0,0.00031874,2]
[341519509,1730949050471,-150.0,0.00031876,2]
[341519510,1730949050483,-349.08590504,0.00031878,2]
[341519511,1730949050726,-150.0,0.00031878,2]
[341519512,1730949050737,-150.0,0.00031884,2]
[341519513,1730949050749,-150.0,0.00031884,2]
[341519514,1730949050759,-150.0,0.00031886,2]
[341519515,1730949050771,-1500.0,0.00031888,2]
[341519516,1730949050782,-150.0,0.0003189,2]
[341519517,1730949050793,-150.0,0.0003189,2]
[341519518,1730949050805,-1500.0,0.00031892,2]
[341519519,1730949050814,-150.0,0.00031892,2]
[341519520,1730949050823,-186.572963,0.00031892,7]
[341519521,1730949050832,-186.572963,0.00031892,7]
[341519522,1730949050842,-151.0,0.00031892,7]
[341519523,1730949050851,-150.0,0.00031894,2]
[341519524,1730949050860,-150.91409496,0.00031895,2]
[341519525,1730949050870,-253.878033,0.00031895,7]
[341519526,1730949050879,-253.878033,0.00031895,7]
[341519527,1730949050889,-171.110711,0.00031898,2]
[341519528,1730949050899,-171.110711,0.00031898,4]
[341519529,1730949050908,-1500.0,0.00031898,2]
[341519530,1730949050918,-200.0,0.00031899,2]
[341519531,1730949050928,-152.242729,0.00031899,7]
[341519532,1730949050938,-151.0,0.00031899,7]
[341519533,1730949050949,-151.0,0.00031899,7]
[341519534,1730949050959,-151.0,0.00031899,7]
[341519535,1730949050968,-151.756151,0.00031899,7]
[341519536,1730949050979,-151.0,0.00031899,7]
[341519537,1730949050989,-151.0,0.00031899,7]
[341519538,1730949050998,-151.0,0.00031899,7]
[341519539,1730949051008,-233.992974,0.00031899,7]
[341519540,1730949051018,-151.0,0.00031899,7]
[341519541,1730949051027,-151.0,0.00031899,7]
[341519542,1730949051037,-172.846621,0.00031899,7]
[341519543,1730949051047,-172.846621,0.00031899,7]
[341519544,1730949051058,-151.0,0.00031899,7]
[341519545,1730949051067,-151.0,0.00031899,7]
[341519546,1730949051077,-151.0,0.00031899,7]
[341519547,1730949051087,-170.339211,0.00031899,7]
[341519548,1730949051097,-170.339211,0.00031899,7]
[341519549,1730949051107,-151.0,0.00031899,7]
[341519550,1730949051117,-151.0,0.00031899,7]
[341519551,1730949051127,-151.0,0.00031899,7]
[341519552,1730949051138,-151.0,0.00031899,7]
[341519553,1730949051148,-151.0,0.00031899,7]
[341519554,1730949051158,-151.0,0.00031899,7]
[341519555,1730949051168,-151.0,0.00031899,7]
[341519556,1730949051178,-216.055883,0.00031899,7]
[341519557,1730949051187,-216.055883,0.00031899,7]
[341519558,1730949051197,-172.852203,0.00031899,7]
[341519559,1730949051207,-212.432198,0.00031899,7]
[341519560,1730949051218,-172.852203,0.00031899,7]
[341519561,1730949051230,-212.432198,0.00031899,7]
[341519562,1730949051241,-158.186895,0.00031899,7]
[341519563,1730949051250,-151.0,0.00031899,7]
[341519564,1730949051260,-180.536283,0.00031899,7]
[341519565,1730949051272,-151.0,0.00031899,7]
[341519566,1730949051282,-180.536283,0.00031899,7]
[341519567,1730949051293,-151.0,0.00031899,7]
[341519568,1730949051305,-151.0,0.00031899,7]
[341519569,1730949051315,-153.165281,0.00031899,7]
[341519570,1730949051324,-151.0,0.00031899,7]
[341519571,1730949051333,-264.854146,0.00031899,7]
[341519572,1730949051343,-264.854146,0.00031899,7]
[341519573,1730949051355,-151.0,0.00031899,7]
[341519574,1730949051366,-151.0,0.00031899,7]
[341519575,1730949051375,-151.0,0.00031899,7]
[341519576,1730949051385,-162.900695,0.00031899,7]
[341519577,1730949051397,-151.0,0.00031899,7]
[341519578,1730949051407,-151.0,0.00031899,7]
[341519579,1730949051418,-1051.368008,0.00031899,7]
[341519580,1730949051428,-1051.368008,0.00031899,7]
[341519581,1730949051440,-4992.93920565,0.000319,2]
[341519582,1730949051451,-606.92605262,0.000319,2]
[341519583,1730949051462,-2038.746371,0.000319,7]
[341519584,1730949051472,-2038.746371,0.000319,7]
[341519585,1730949051482,-152.866317,0.000319,7]
[341519586,1730949051491,-151.0,0.000319,7]
[341519587,1730949051501,-151.0,0.000319,7]
[341519588,1730949051512,-151.0,0.000319,7]
[341519589,1730949051523,-151.0,0.000319,7]
[341519590,1730949051532,-151.0,0.000319,7]
[341519591,1730949051541,-151.684963,0.000319,7]
[341519592,1730949051552,-152.35986,0.000319,7]
[341519593,1730949051565,-151.0,0.000319,7]
[341519594,1730949051575,-151.0,0.000319,7]
[341519595,1730949051584,-192.400554,0.000319,7]
[341519596,1730949051596,-151.0,0.000319,7]
[341519597,1730949051607,-151.0,0.000319,7]
[341519598,1730949051618,-151.0,0.000319,7]
[341519599,1730949051628,-151.0,0.000319,7]
[341519600,1730949051643,-151.0,0.000319,7]
[341519601,1730949051653,-151.0,0.000319,7]
[341519602,1730949051664,-151.0,0.000319,7]
[341519603,1730949051674,-153.166928,0.000319,7]
[341519604,1730949051686,-151.0,0.000319,7]
[341519605,1730949051697,-157.204103,0.000319,7]
[341519606,1730949051707,-152.03192,0.000319,7]
[341519607,1730949051719,-157.204103,0.000319,7]
[341519608,1730949051730,-216.815928,0.000319,7]
[341519609,1730949051740,-151.0,0.000319,7]
[341519610,1730949051751,-172.846621,0.000319,7]
[341519611,1730949051761,-216.815928,0.000319,7]
[341519612,1730949051772,-172.846621,0.000319,7]
[341519613,1730949051781,-224.449515,0.000319,7]
[341519614,1730949051791,-224.449515,0.000319,7]
[341519615,1730949051802,-156.818102,0.000319,7]
[341519616,1730949051812,-209.582217,0.000319,7]
[341519617,1730949051821,-209.582217,0.000319,7]
[341519618,1730949051831,-151.0,0.000319,7]
[341519619,1730949051842,-151.0,0.000319,7]
[341519620,1730949051851,-151.0,0.000319,7]
[341519621,1730949051861,-151.0,0.000319,7]
[341519622,1730949051871,-151.0,0.000319,7]
[341519623,1730949051880,-151.0,0.000319,7]
[341519624,1730949051890,-151.0,0.000319,7]
[341519625,1730949051899,-151.0,0.000319,7]
[341519626,1730949051909,-1500.0,0.000319,2]
[341519627,1730949051918,-644.437825,0.000319,7]
[341519628,1730949051928,-151.0,0.000319,7]
[341519629,1730949051937,-644.437825,0.000319,7]
[341519630,1730949051947,-173.745683,0.000319,7]
[341519631,1730949051956,-151.0,0.000319,7]
[341519632,1730949051966,-173.745683,0.000319,7]
[341519633,1730949051976,-151.0,0.000319,7]
[341519634,1730949051986,-293.779235,0.000319,7]
[341519635,1730949051996,-151.0,0.000319,7]
[341519636,1730949052005,-152.198966,0.000319,7]
[341519637,1730949052015,-151.0,0.000319,7]
[341519638,1730949052024,-165.701829,0.000319,7]
[341519639,1730949052034,-165.701829,0.000319,7]
[341519640,1730949052044,-2078.539581,0.000319,7]
[341519641,1730949052054,-2078.539581,0.000319,7]
[341519642,1730949052064,-151.0,0.000319,7]
[341519643,1730949052074,-151.0,0.000319,7]
[341519644,1730949052084,-159.673993,0.000319,7]
[341519645,1730949052093,-877.42992014,0.000319,2]
[341519646,1730949052103,-456.608977,0.000319,7]
[341519647,1730949052112,-892.472602,0.000319,7]
[341519648,1730949052121,-456.608977,0.000319,7]
[341519649,1730949052131,-892.472602,0.000319,7]
[341519650,1730949052140,-150.0,0.00031905,2]
[341519651,1730949052149,-150.0,0.00031907,2]
[341519652,1730949052158,-150.0,0.00031909,2]
[341519653,1730949052168,-2000.0,0.00031916,2]
[341519654,1730949052177,-200.0,0.00031916,2]
[341519655,1730949052187,-200.0,0.00031916,2]
[341519656,1730949052197,-1705.89187054,0.00031916,2]
[341519657,1730949052206,-200.0,0.00031916,2]
[341519658,1730949052215,-150.0,0.00031919,2]
[341519659,1730949052225,-298.38296478,0.00031924,2]
[341519660,1730949052234,-150.0,0.00031926,2]
[341519661,1730949052244,-185.299,0.00031928,2]
[341519662,1730949052253,-151.4272702,0.00031929,2]
[341519663,1730949052262,-1500.0,0.00031931,2]
[341519664,1730949052273,-349.08590504,0.00031932,2]
[341519665,1730949052282,-150.0,0.00031934,2]
[341519666,1730949052293,-150.0,0.00031935,2]
[341519667,1730949052304,-300.0,0.00031936,2]
[341519668,1730949052314,-151.0,0.00031937,7]
[341519669,1730949052324,-151.0,0.00031937,7]
[341519670,1730949052334,-152.292522,0.00031937,7]
[341519671,1730949052344,-151.0,0.00031937,7]
[341519672,1730949052355,-157.204103,0.00031937,7]
[341519673,1730949052367,-157.204103,0.00031937,7]
[341519674,1730949052378,-216.815928,0.00031937,7]
[341519675,1730949052389,-216.815928,0.00031937,7]
[341519676,1730949052398,-1051.368008,0.00031937,7]
[341519677,1730949052409,-1051.368008,0.00031937,7]
[341519678,1730949052420,-151.0,0.00031937,7]
[341519679,1730949052430,-151.0,0.00031937,7]
[341519680,1730949052441,-151.0,0.00031937,7]
[341519681,1730949052451,-294.501227,0.00031937,7]
[341519682,1730949052461,-294.501227,0.00031937,7]
[341519683,1730949052471,-150.0,0.00031938,2]
[341519684,1730949052483,-150.0,0.0003194,2]
[341519685,1730949052493,-156.45319026,0.00031942,2]
[341519686,1730949052502,-150.0,0.00031944,2]
[341519687,1730949052511,-150.0,0.00031944,2]
[341519688,1730949052521,-150.0,0.00031945,2]
[341519689,1730949052530,-150.0,0.00031947,2]
[341519690,1730949052540,-150.0,0.00031951,2]
[341519691,1730949052549,-150.0,0.00031952,2]
[341519692,1730949052560,-150.0,0.00031954,2]
[341519693,1730949052569,-150.0,0.00031955,2]
[341519694,1730949052579,-1500.0,0.00031957,2]
[341519695,1730949052588,-150.0,0.00031962,2]
[341519696,1730949052597,-150.0,0.00031962,2]
[341519697,1730949052606,-150.0,0.00031969,2]
[341519698,1730949052616,-150.0,0.00031971,2]
[341519699,1730949052625,-150.0,0.00031976,2]
[341519700,1730949052638,-150.0,0.0003198,2]
[341519701,1730949052648,-150.0,0.0003198,2]
[341519702,1730949052657,-150.0,0.00031981,2]
[341519703,1730949052666,-150.0,0.00031984,2]
[341519704,1730949052677,-151.0,0.00031986,7]
[341519705,1730949052687,-150.0,0.00031986,2]
[341519706,1730949052696,-150.0,0.00031989,2]
[341519707,1730949052705,-150.0,0.00031989,2]
[341519708,1730949052715,-150.0,0.00031992,2]
[341519709,1730949052724,-150.0,0.00031992,2]
[341519710,1730949052733,-150.0,0.00031993,2]
[341519711,1730949052743,-150.0,0.00031993,2]
[341519712,1730949052752,-3540437.09797081,0.00031997,3]
[341519713,1730949053422,-928322.29375106,0.00031997,3]
[341519714,1730949053433,-151.0,0.00031997,7]
[341519715,1730949053445,-151.0,0.00031997,7]
[341519716,1730949053454,-151.0,0.00031997,7]
[341519717,1730949053463,-151.0,0.00031997,7]
[341519718,1730949053473,-152.408181,0.00031997,7]
[341519719,1730949053483,-158.057522,0.00031997,7]
[341519720,1730949053494,-298.44923,0.00031997,7]
[341519721,1730949053505,-151.0,0.00031997,7]
[341519722,1730949053515,-151.0,0.00031997,7]
[341519723,1730949053525,-157.204103,0.00031997,7]
[341519724,1730949053536,-151.0,0.00031997,7]
[341519725,1730949053545,-157.204103,0.00031997,7]
[341519726,1730949053554,-151.0,0.00031997,7]
[341519727,1730949053566,-216.815928,0.00031997,7]
[341519728,1730949053575,-172.846621,0.00031997,7]
[341519729,1730949053584,-216.815928,0.00031997,7]
[341519730,1730949053594,-172.846621,0.00031997,7]
[341519731,1730949053604,-151.0,0.00031997,7]
[341519732,1730949053613,-151.0,0.00031997,7]
[341519733,1730949053623,-151.0,0.00031997,7]
[341519734,1730949053633,-170.339211,0.00031997,7]
[341519735,1730949053647,-170.339211,0.00031997,7]
[341519736,1730949053657,-185.464879,0.00031997,7]
[341519737,1730949053666,-151.0,0.00031997,7]
[341519738,1730949053675,-151.0,0.00031997,7]
[341519739,1730949053686,-151.0,0.00031997,7]
[341519740,1730949053697,-151.0,0.00031997,7]
[341519741,1730949053707,-151.0,0.00031997,7]
[341519742,1730949053719,-151.0,0.00031997,7]
[341519743,1730949053731,-216.055883,0.00031997,7]
[341519744,1730949053742,-216.055883,0.00031997,7]
[341519745,1730949053752,-172.852203,0.00031997,7]
[341519746,1730949053763,-212.432198,0.00031997,7]
[341519747,1730949053772,-172.852203,0.00031997,7]
[341519748,1730949053782,-212.432198,0.00031997,7]
[341519749,1730949053791,-157.525109,0.00031997,7]
[341519750,1730949053800,-180.536283,0.00031997,7]
[341519751,1730949053812,-151.0,0.00031997,7]
[341519752,1730949053823,-180.536283,0.00031997,7]
[341519753,1730949053832,-151.0,0.00031997,7]
[341519754,1730949053841,-151.0,0.00031997,7]
[341519755,1730949053850,-151.0,0.00031997,7]
[341519756,1730949053859,-264.854146,0.00031997,7]
[341519757,1730949053868,-264.854146,0.00031997,7]
[341519758,1730949053878,-151.0,0.00031997,7]
[341519759,1730949053887,-151.0,0.00031997,7]
[341519760,1730949053896,-151.0,0.00031997,7]
[341519761,1730949053907,-151.0,0.00031997,7]
[341519762,1730949053916,-151.0,0.00031997,7]
[341519763,1730949053926,-1051.368008,0.00031997,7]